bitfinex/quotes_BTCUSD_20220731
["timestamp","ask_amount","ask_price","bid_price","bid_amount"]
[1659291705172,0.655099,24092.0,24091.0,0.11992316]
[1659291705410,0.530999,24092.0,24091.0,0.11992316]
[1659291705638,0.231,24092.0,24091.0,0.11992316]
[1659291705935,0.530999,24092.0,24091.0,0.11992316]
[1659291706167,0.1,24091.0,24090.0,0.00196752]
[1659291706426,0.1,24091.0,24067.0,0.0011]
[1659291706427,0.05,24076.0,24073.0,0.4421]
[1659291706659,0.1741,24074.0,24067.0,0.0011]
[1659291706883,0.05,24074.0,24073.0,0.40725733]
[1659291707115,0.2259,24074.0,24073.0,0.40725733]
[1659291707339,0.5759,24074.0,24073.0,0.40725733]
[1659291707568,0.8039,24074.0,24073.0,0.40725733]
[1659291707808,0.5759,24074.0,24073.0,0.40725733]
[1659291708255,0.2759,24074.0,24073.0,0.40725733]
[1659291708698,0.5759,24074.0,24073.0,0.40725733]
[1659291708699,0.4,24074.0,24073.0,0.44193049]
[1659291708930,0.4,24074.0,24073.0,0.40725733]
[1659291709396,0.01256257,24081.0,24073.0,0.40725733]
[1659291709623,0.1,24082.0,24077.0,0.40725733]
[1659291709890,0.135,24082.0,24077.0,0.40725733]
[1659291710369,0.45,24078.0,24077.0,0.40725733]
[1659291710605,0.45,24078.0,24067.0,0.0181]
[1659291710606,0.5759,24078.0,24072.0,0.40725733]
[1659291710843,0.15,24078.0,24073.0,0.00193548]
[1659291711080,0.1741,24075.0,24073.0,0.00193548]
[1659291711308,0.1741,24075.0,24074.0,0.40725733]
[1659291711309,0.2741,24075.0,24074.0,0.40725733]
[1659291712004,0.2241,24075.0,24074.0,0.40725733]
[1659291712566,0.2241,24075.0,24074.0,0.44193049]
[1659291713022,0.2241,24075.0,24074.0,0.40725733]
[1659291713694,0.1259,24078.0,24074.0,0.40725733]
[1659291713942,0.1,24083.0,24077.0,0.40725733]
[1659291714167,0.1,24083.0,24079.0,0.40725733]
[1659291714386,0.1241,24085.0,24081.0,0.40725733]
[1659291714612,1.3800838,24091.0,24084.0,0.40725733]
[1659291714613,1.1587,24090.0,24084.0,0.40725733]
[1659291714844,0.1,24088.0,24084.0,0.40725733]
[1659291715075,0.7539,24087.0,24084.0,0.40725733]
[1659291715308,0.135,24086.0,24084.0,0.40725733]
[1659291715535,0.19176,24087.0,24084.0,0.40725733]
[1659291715971,0.41976,24087.0,24084.0,0.40917403]
[1659291716192,0.235,24086.0,24085.0,0.40725733]
[1659291716665,0.235,24086.0,24084.0,0.0019167]
[1659291716666,0.05,24085.0,24084.0,0.0019167]
[1659291716894,0.380869,24085.0,24084.0,0.0019167]
[1659291717127,0.649999,24085.0,24084.0,0.0019167]
[1659291717359,0.05,24079.0,24074.0,0.4]
[1659291717599,0.05,24079.0,24075.0,0.70725633]
[1659291717841,0.185,24079.0,24076.0,0.70725633]
[1659291718094,0.185,24079.0,24077.0,0.70725633]
[1659291718315,0.185,24079.0,24078.0,0.40725733]
[1659291718542,0.3096,24079.0,24078.0,0.40725733]
[1659291718783,0.6096,24079.0,24072.0,0.40725733]
[1659291719072,0.1253,24074.0,24073.0,0.299999]
[1659291719337,0.2253,24074.0,24073.0,0.70725633]
[1659291720238,0.1,24074.0,24073.0,0.40725733]
[1659291720511,0.1,24074.0,24073.0,0.70725633]
[1659291720726,0.1,24074.0,24073.0,0.74192949]
[1659291721177,0.1246,24078.0,24073.0,0.74192949]
[1659291721416,0.1253,24083.0,24077.0,0.40725733]
[1659291721658,0.714,24084.0,24079.0,0.40725733]
[1659291722338,0.2713813,24083.0,24079.0,0.40725733]
[1659291722559,0.228,24081.0,24079.0,0.40725733]
[1659291722783,0.035,24082.0,24079.0,0.40725733]
[1659291723223,0.734769,24084.0,24079.0,0.40725733]
[1659291723447,0.1253,24081.0,24079.0,0.40725733]
[1659291723900,0.1253,24081.0,24079.0,0.40913248]
[1659291724121,0.1253,24081.0,24080.0,0.80725733]
[1659291724605,0.714,24084.0,24080.0,1.24935733]
[1659291724847,0.714,24084.0,24083.0,0.40725733]
[1659291725308,0.767381,24092.0,24084.0,0.05]
[1659291725309,0.757,24092.0,24084.0,0.05]
[1659291725552,0.757,24092.0,24091.0,0.40725733]
[1659291725767,0.003,24092.0,24091.0,0.40725733]
[1659291726227,0.04575,24092.0,24091.0,0.40725733]
[1659291726994,0.003,24092.0,24091.0,0.40725733]
[1659291727212,0.003,24092.0,24091.0,0.40651521]
[1659291727884,0.003,24092.0,24091.0,0.40838837]
[1659291728108,0.003,24092.0,24091.0,0.44567743]
[1659291728330,0.003,24092.0,24091.0,0.44306153]
[1659291728568,0.003,24092.0,24091.0,0.40838837]
[1659291729033,0.053,24092.0,24091.0,0.44306153]
[1659291729272,0.30400529,24092.0,24091.0,0.44306153]
[1659291729522,0.053,24092.0,24091.0,0.44306153]
[1659291729742,0.053,24092.0,24091.0,0.40838837]
[1659291732114,0.051,24092.0,24091.0,0.40838837]
[1659291732337,0.051,24092.0,24091.0,0.85048837]
[1659291732338,0.05,24092.0,24091.0,0.85048837]
[1659291732576,0.05,24092.0,24091.0,1.15048737]
[1659291732813,0.553,24095.0,24091.0,1.15048737]
[1659291733033,0.553,24095.0,24094.0,0.84935733]
[1659291733274,0.0031,24100.0,24094.0,0.88480739]
[1659291733489,0.04585,24100.0,24099.0,0.40725733]
[1659291733940,0.2311,24100.0,24099.0,0.40725733]
[1659291734159,0.0031,24100.0,24099.0,0.40725733]
[1659291734394,0.2311,24100.0,24099.0,0.40725733]
[1659291734663,0.3311,24100.0,24099.0,0.40725733]
[1659291734895,0.83658,24100.0,24099.0,0.40725733]
[1659291735115,0.8057,24100.0,24099.0,0.40725733]
[1659291735333,0.8057,24100.0,24099.0,0.40650103]
[1659291737185,0.83658,24100.0,24099.0,0.40650103]
[1659291737424,0.8057,24100.0,24099.0,0.40650103]
[1659291738650,0.8057,24100.0,24099.0,0.44117419]
[1659291738651,0.4057,24100.0,24099.0,0.44117419]
[1659291738879,0.4057,24100.0,24099.0,0.40650103]
[1659291739347,0.4057,24100.0,24094.0,0.40725733]
[1659291739348,0.05,24097.0,24094.0,0.40725733]
[1659291739584,0.5376,24095.0,24094.0,0.40725733]
[1659291739812,0.8876,24095.0,24094.0,0.40725733]
[1659291740039,0.9376,24095.0,24094.0,0.40725733]
[1659291740516,0.9376,24095.0,24090.0,0.40725733]
[1659291740749,0.328,24091.0,24090.0,0.40725733]
[1659291740985,0.5026,24091.0,24090.0,0.40725733]
[1659291741214,0.8026,24091.0,24090.0,0.40725733]
[1659291741437,0.8026,24091.0,24084.0,0.40725733]
[1659291741683,0.2246,24087.0,24085.0,0.299999]
[1659291741940,0.278,24086.0,24075.0,0.2869]
[1659291742168,0.1246,24082.0,24081.0,0.40725733]
[1659291742390,0.1746,24082.0,24081.0,0.40725733]
[1659291743105,0.1246,24082.0,24081.0,0.70725633]
[1659291743334,0.1,24088.0,24081.0,1.44935633]
[1659291743566,0.781,24091.0,24085.0,0.40725733]
[1659291743807,0.553,24091.0,24090.0,0.40725733]
[1659291744534,0.553,24091.0,24090.0,0.44193049]
[1659291744981,0.553,24091.0,24090.0,0.44174647]
[1659291745433,0.553,24091.0,24090.0,0.40707331]
[1659291747550,0.553,24091.0,24090.0,0.40892808]
[1659291747758,0.06640454,24095.0,24090.0,0.56053808]
[1659291747983,0.05,24094.0,24091.0,0.40725733]
[1659291748202,0.45140454,24095.0,24090.0,0.00185477]
[1659291748203,0.035,24095.0,24093.0,0.40725733]
[1659291748423,0.714,24096.0,24094.0,0.40725733]
[1659291748670,0.0031,24100.0,24095.0,0.40725733]
[1659291748878,0.05,24099.0,24097.0,0.40725733]
[1659291749101,0.2661,24100.0,24097.0,0.40725733]
[1659291749341,0.1253,24099.0,24097.0,0.40725733]
[1659291749552,0.2103,24099.0,24097.0,0.40725733]
[1659291750039,0.228,24098.0,24097.0,0.40725733]
[1659291750290,0.228,24098.0,24090.0,0.00185477]
[1659291750291,0.125,24096.0,24091.0,0.40725733]
[1659291750530,0.2603,24092.0,24091.0,0.40725733]
[1659291750738,1.391189,24092.0,24091.0,0.40725733]
[1659291750961,0.69119,24092.0,24091.0,0.40725733]
[1659291751188,0.72294348,24092.0,24090.0,0.4091121]
[1659291751397,0.135,24091.0,24090.0,0.4091121]
[1659291751822,0.435,24091.0,24090.0,0.40725733]
[1659291752269,0.3,24091.0,24090.0,0.40725733]
[1659291752493,0.3,24091.0,24090.0,0.44193049]
[1659291752695,0.2253,24092.0,24090.0,0.40725733]
[1659291753333,0.135,24091.0,24089.0,0.4091121]
[1659291753549,0.3,24091.0,24089.0,0.4091121]
[1659291753860,0.335,24091.0,24090.0,0.40725733]
[1659291754076,0.3,24091.0,24090.0,0.40725733]
[1659291754879,0.5253,24092.0,24090.0,0.40725733]
[1659291755111,0.5253,24092.0,24091.0,0.00188938]
[1659291755324,0.5253,24092.0,24091.0,0.40914671]
[1659291756437,0.5253,24092.0,24091.0,0.00188938]
[1659291756649,0.4533,24092.0,24091.0,0.00188938]
[1659291756871,0.4,24092.0,24091.0,0.44381987]
[1659291757093,0.1,24094.0,24091.0,0.44381987]
[1659291757304,0.035,24094.0,24093.0,0.40725733]
[1659291757528,0.06639848,24097.0,24093.0,0.40725733]
[1659291757940,0.05,24096.0,24093.0,0.40725733]
[1659291758178,0.10139848,24097.0,24093.0,0.40725733]
[1659291758873,0.278,24095.0,24093.0,0.40725733]
[1659291759104,0.135,24094.0,24093.0,0.40725733]
[1659291759565,0.05,24095.0,24093.0,0.40725733]
[1659291759803,0.1253,24094.0,24093.0,0.44193049]
[1659291760040,0.2253,24094.0,24093.0,0.40725733]
[1659291760379,0.5253,24094.0,24093.0,0.40725733]
[1659291760475,0.535679,24094.0,24093.0,0.40725733]
[1659291761182,0.535679,24094.0,24092.0,0.40725733]
[1659291761414,0.010379,24093.0,24092.0,0.40725733]
[1659291762122,0.278379,24093.0,24092.0,0.40725733]
[1659291762356,0.278379,24093.0,24091.0,0.00188938]
[1659291762357,0.05,24092.0,24091.0,0.40914671]
[1659291762605,0.749999,24092.0,24091.0,0.40914671]
[1659291762837,0.5,24092.0,24091.0,0.40914671]
[1659291763755,0.5,24092.0,24091.0,0.00188938]
[1659291763974,0.520764,24092.0,24091.0,0.00188938]
[1659291764707,0.5,24092.0,24091.0,0.00188938]
[1659291764925,0.510381,24092.0,24091.0,0.00188938]
[1659291765152,0.510381,24092.0,24082.0,0.85891353]
[1659291765379,0.083056,24090.0,24085.0,0.40725733]
[1659291765615,0.1746,24086.0,24085.0,0.40725733]
[1659291765843,0.2246,24086.0,24085.0,0.70725633]
[1659291766409,0.234982,24086.0,24085.0,0.40725733]
[1659291766643,0.2246,24086.0,24085.0,0.70725633]
[1659291767201,0.2246,24086.0,24085.0,0.40725733]
[1659291767854,0.5246,24086.0,24085.0,0.40725733]
[1659291768126,0.534982,24086.0,24085.0,0.40725733]
[1659291768365,0.584982,24086.0,24085.0,0.40725733]
[1659291769262,0.584982,24086.0,24080.0,0.40725733]
[1659291769263,0.268,24081.0,24080.0,0.40725733]
[1659291769494,0.742599,24081.0,24080.0,0.40725733]
[1659291769708,1.092599,24081.0,24080.0,0.40725733]
[1659291769931,0.7926,24081.0,24074.0,0.40725733]
[1659291770138,0.1746,24075.0,24074.0,0.70725633]
[1659291770358,0.2246,24075.0,24074.0,0.70725633]
[1659291770636,0.2746,24075.0,24074.0,0.70725633]
[1659291770849,0.2746,24075.0,24074.0,0.40725733]
[1659291771075,0.792599,24075.0,24074.0,0.40725733]
[1659291771279,0.7926,24075.0,24074.0,0.40725733]
[1659291771492,0.5746,24075.0,24074.0,0.40225733]
[1659291772185,0.7926,24075.0,24074.0,0.40225733]
[1659291772415,0.1746,24075.0,24074.0,0.40225733]
[1659291773758,0.2746,24075.0,24074.0,0.40225733]
[1659291774395,0.295375,24075.0,24074.0,0.40225733]
[1659291774643,0.813375,24075.0,24074.0,0.40225733]
[1659291775287,0.813375,24075.0,24070.0,0.40725733]
[1659291775503,0.131171,24071.0,24070.0,0.40725733]
[1659291775717,0.79236761,24071.0,24070.0,0.40725733]
[1659291775998,0.87436761,24071.0,24070.0,0.40725733]
[1659291776209,1.07567661,24071.0,24070.0,0.40725733]
[1659291776412,0.05,24070.0,24069.0,0.40835733]
[1659291776639,0.05,24070.0,24069.0,0.0011]
[1659291776640,0.350328,24070.0,24069.0,0.0011]
[1659291776856,0.350328,24070.0,24069.0,0.40835733]
[1659291777571,0.1,24073.0,24071.0,0.194672]
[1659291777815,0.1253,24075.0,24071.0,0.194672]
[1659291777816,0.01222555,24081.0,24072.0,0.70725633]
[1659291778029,1.1608,24083.0,24078.0,0.40725733]
[1659291778235,0.05,24082.0,24079.0,0.40725733]
[1659291778451,1.20824832,24083.0,24079.0,0.40725733]
[1659291778654,0.353,24080.0,24079.0,0.40725733]
[1659291778867,0.353,24080.0,24070.0,0.9884]
[1659291778868,0.05,24075.0,24074.0,0.40725733]
[1659291779745,0.349999,24075.0,24074.0,0.40725733]
[1659291780003,0.43264348,24075.0,24074.0,0.40725733]
[1659291780238,0.0353,24070.0,24069.0,0.0011]
[1659291780498,0.382911,24070.0,24069.0,0.0011]
[1659291780702,0.382911,24070.0,24067.0,0.0001]
[1659291780703,0.2203,24068.0,24067.0,0.0001]
[1659291780911,1.704913,24068.0,24067.0,0.0001]
[1659291781202,2.60175648,24068.0,24067.0,0.0001]
[1659291781412,2.65175648,24068.0,24067.0,0.0001]
[1659291781855,2.08375648,24068.0,24067.0,0.0001]
[1659291782082,1.60283648,24068.0,24067.0,0.0001]
[1659291782350,0.2603,24068.0,24067.0,0.0001]
[1659291782533,0.813599,24068.0,24067.0,0.0001]
[1659291782966,0.0353,24066.0,24061.0,0.0003]
[1659291783195,0.0353,24066.0,24062.0,0.40725733]
[1659291783196,0.2253,24065.0,24062.0,0.40725733]
[1659291783404,0.05,24063.0,24062.0,0.40725733]
[1659291783652,0.395694,24063.0,24062.0,0.40725733]
[1659291783898,0.010394,24063.0,24062.0,0.40725733]
[1659291784140,0.2253,24065.0,24062.0,0.40725733]
[1659291784356,0.1,24065.0,24062.0,0.40725733]
[1659291784587,0.135,24065.0,24062.0,0.40725733]
[1659291784792,0.05,24064.0,24062.0,0.40725733]
[1659291785014,0.135,24065.0,24062.0,0.44193049]
[1659291785221,0.13846351,24065.0,24063.0,0.40725733]
[1659291785661,0.10346351,24065.0,24063.0,0.40725733]
[1659291786324,0.11385551,24065.0,24063.0,0.40725733]
[1659291786556,0.10346351,24065.0,24063.0,0.40725733]
[1659291786763,0.18876351,24065.0,24063.0,0.40725733]
[1659291786987,0.23876351,24065.0,24063.0,0.40725733]
[1659291787209,0.053142,24064.0,24063.0,0.40725733]
[1659291787458,0.353142,24064.0,24063.0,0.40725733]
[1659291787717,0.310392,24064.0,24063.0,0.40725733]
[1659291788150,0.3,24064.0,24063.0,0.40725733]
[1659291788591,0.10346351,24065.0,24063.0,0.40725733]
[1659291788801,0.10346351,24065.0,24064.0,0.70725633]
[1659291788802,0.00346351,24065.0,24064.0,0.70725633]
[1659291789078,0.11385665,24070.0,24064.0,0.70725633]
[1659291789302,0.11385665,24070.0,24065.0,0.40725733]
[1659291790264,0.04539,24068.0,24065.0,0.40725733]
[1659291790483,0.99046155,24067.0,24065.0,0.40725733]
[1659291790714,0.045391,24067.0,24065.0,0.40725733]
[1659291790948,0.35,24066.0,24065.0,0.40725733]
[1659291791180,0.5253,24066.0,24065.0,0.40725733]
[1659291791412,0.1253,24066.0,24065.0,0.40725733]
[1659291791646,0.11385765,24070.0,24065.0,0.44193049]
[1659291791647,0.1253,24069.0,24065.0,0.44193049]
[1659291791874,0.1253,24069.0,24066.0,0.40725733]
[1659291792328,0.1603,24069.0,24066.0,0.40725733]
[1659291792820,0.17069,24069.0,24066.0,0.40725733]
[1659291793029,0.191471,24069.0,24066.0,0.40725733]
[1659291793499,0.233035,24069.0,24066.0,0.40725733]
[1659291793718,0.00684885,24067.0,24066.0,0.40725733]
[1659291793951,0.05,24068.0,24066.0,0.40725733]
[1659291794139,0.06039,24068.0,24066.0,0.40725733]
[1659291796015,0.05,24068.0,24066.0,0.44193049]
[1659291796226,0.05,24068.0,24067.0,0.40725733]
[1659291796513,0.06039,24068.0,24067.0,0.40725733]
[1659291796719,1.14788614,24068.0,24067.0,0.40725733]
[1659291796931,1.48945014,24068.0,24067.0,0.40725733]
[1659291797368,1.53566672,24068.0,24067.0,0.40725733]
[1659291797820,1.49410272,24068.0,24067.0,0.40725733]
[1659291798253,1.48371272,24068.0,24067.0,0.40725733]
[1659291798675,1.49410272,24068.0,24067.0,0.40725733]
[1659291799778,0.01385658,24068.0,24067.0,0.40725733]
[1659291799993,0.01385658,24068.0,24067.0,0.44193049]
[1659291800934,0.01385658,24068.0,24067.0,0.40703433]
[1659291801335,0.31385658,24068.0,24067.0,0.40703433]
[1659291801566,0.31385658,24068.0,24067.0,0.72173333]
[1659291801567,6.58e-06,24068.0,24067.0,0.72173333]
[1659291801765,6.58e-06,24068.0,24067.0,1.96383333]
[1659291802399,0.032,24074.0,24068.0,0.742099]
[1659291802528,0.00346658,24075.0,24074.0,0.756799]
[1659291802774,0.13590231,24083.0,24075.0,0.00346]
[1659291803029,0.82425088,24086.0,24082.0,0.40725733]
[1659291803030,0.62536575,24086.0,24082.0,0.40725733]
[1659291803248,0.62171256,24086.0,24085.0,0.0147]
[1659291803460,0.62171256,24086.0,24085.0,0.45663049]
[1659291803893,0.61671256,24086.0,24085.0,0.45663049]
[1659291804140,0.61671256,24086.0,24085.0,0.89873049]
[1659291804560,0.61671256,24086.0,24085.0,1.19872949]
[1659291805209,0.61671256,24086.0,24085.0,1.20043933]
[1659291806042,0.61671256,24086.0,24085.0,1.19969895]
[1659291806257,0.61671256,24086.0,24085.0,1.16502579]
[1659291806528,0.61671256,24086.0,24085.0,1.15106617]
[1659291806684,0.61671256,24086.0,24085.0,0.70896617]
[1659291807123,0.91671256,24086.0,24085.0,0.70896617]
[1659291807342,0.91671256,24086.0,24085.0,0.40896717]
[1659291808815,0.91671256,24086.0,24085.0,0.44364033]
[1659291809058,0.91671256,24086.0,24085.0,0.40896717]
[1659291810115,0.91671256,24086.0,24085.0,0.44364033]
[1659291810331,0.91671256,24086.0,24085.0,0.85106717]
[1659291810578,0.61671256,24086.0,24085.0,0.86576717]
[1659291810788,0.61671256,24086.0,24085.0,1.16576617]
[1659291811210,0.61671256,24086.0,24085.0,1.20043933]
[1659291811923,0.61671256,24086.0,24085.0,1.19958424]
[1659291812570,0.61671256,24086.0,24085.0,1.19937094]
[1659291813465,0.61671256,24086.0,24085.0,1.20021879]
[1659291813894,0.61671256,24086.0,24085.0,1.19947841]
[1659291814365,0.61671256,24086.0,24085.0,1.20021398]
[1659291815023,0.002,24087.0,24086.0,1.8313405]
[1659291815236,0.002,24090.0,24086.0,1.8313405]
[1659291815237,0.002,24090.0,24089.0,0.99955]
[1659291815519,0.002,24090.0,24089.0,1.61046442]
[1659291815966,0.002,24090.0,24089.0,1.07579126]
[1659291816168,0.002,24090.0,24089.0,1.03304126]
[1659291816403,0.002,24090.0,24089.0,1.22100471]
[1659291816824,0.002,24090.0,24089.0,1.21130471]
[1659291817320,0.002,24090.0,24089.0,0.28292255]
[1659291817919,0.002,24090.0,24089.0,0.28260202]
[1659291821689,0.04475,24090.0,24089.0,0.28260202]
[1659291822592,0.002,24090.0,24089.0,0.46313202]
[1659291822810,0.002,24090.0,24089.0,0.76276402]
[1659291823046,0.002,24090.0,24089.0,1.20486402]
[1659291823539,0.002,24090.0,24089.0,1.21524787]
[1659291823771,0.002,24090.0,24089.0,1.20480749]
[1659291824435,0.002,24090.0,24089.0,1.20387126]
[1659291824675,0.002,24090.0,24089.0,1.21357126]
[1659291825322,0.002,24090.0,24089.0,1.20387126]
[1659291825541,0.002,24090.0,24089.0,1.21357126]
[1659291825778,0.002,24090.0,24089.0,1.21283084]
[1659291826244,0.002,24090.0,24089.0,1.17008084]
[1659291826466,0.002,24090.0,24089.0,0.615174]
[1659291826691,0.002,24090.0,24089.0,0.58050084]
[1659291827781,0.002,24090.0,24089.0,0.315175]
[1659291828011,0.21975,24090.0,24089.0,0.28050184]
[1659291828238,0.399999,24090.0,24089.0,0.28050184]
[1659291828510,0.416691,24090.0,24089.0,0.28050184]
[1659291828727,0.4,24090.0,24089.0,0.28050184]
[1659291829693,0.441271,24090.0,24089.0,0.27976146]
[1659291829953,0.4,24090.0,24089.0,0.27976146]
[1659291830179,0.41038,24090.0,24089.0,0.27976146]
[1659291830424,0.4,24090.0,24089.0,0.27976146]
[1659291833620,0.05,24090.0,24089.0,0.27976146]
[1659291833857,0.1,24090.0,24089.0,0.27976146]
[1659291834076,0.05,24090.0,24089.0,0.27976146]
[1659291834330,0.1,24090.0,24089.0,0.27976146]
[1659291835300,0.318,24090.0,24089.0,0.27976146]
[1659291835522,0.62838,24090.0,24089.0,0.27902108]
[1659291836431,0.618,24090.0,24089.0,0.27902108]
[1659291836661,1.149572,24090.0,24089.0,0.27902108]
[1659291836886,1.46221448,24090.0,24089.0,0.27902108]
[1659291837111,1.46221448,24090.0,24084.0,0.40725733]
[1659291837112,0.05,24089.0,24084.0,0.40725733]
[1659291837339,0.4421,24085.0,24084.0,0.40725733]
[1659291837648,0.5771,24085.0,24084.0,0.40651695]
[1659291837865,0.8771,24085.0,24084.0,0.40651695]
[1659291838091,0.9174,24085.0,24084.0,0.40651695]
[1659291838314,0.969068,24085.0,24084.0,0.40651695]
[1659291838960,1.369068,24085.0,24084.0,0.40651695]
[1659291839171,1.248299,24085.0,24084.0,0.40651695]
[1659291839392,0.927785,24085.0,24084.0,0.40577657]
[1659291839819,0.948553,24085.0,24084.0,0.39577657]
[1659291840470,0.979453,24085.0,24084.0,0.39577657]
[1659291840700,0.948553,24085.0,24084.0,0.39577657]
[1659291840918,0.185685,24085.0,24084.0,0.39577657]
[1659291841148,0.872,24089.0,24084.0,0.39577657]
[1659291841649,0.135,24088.0,24085.0,0.40725733]
[1659291841822,0.135,24088.0,24085.0,0.40651695]
[1659291841947,0.3933,24087.0,24085.0,0.40725733]
[1659291842177,0.4242,24087.0,24085.0,0.40725733]
[1659291842387,0.434583,24087.0,24085.0,0.40725733]
[1659291842828,0.1,24086.0,24085.0,0.40725733]
[1659291843477,0.1753,24087.0,24085.0,0.40725733]
[1659291844139,0.1753,24087.0,24085.0,0.40745074]
[1659291844357,0.1753,24087.0,24086.0,0.40725733]
[1659291845281,0.2753,24087.0,24086.0,0.40725733]
[1659291845735,0.2753,24087.0,24086.0,0.40651695]
[1659291845977,0.285681,24087.0,24086.0,0.40651695]
[1659291846203,0.2753,24087.0,24086.0,0.40651695]
[1659291847298,0.6779048,24090.0,24086.0,0.84861695]
[1659291847523,0.6779048,24090.0,24089.0,1.24935733]
[1659291847794,0.556,24097.0,24096.0,0.0097]
[1659291848007,0.0031,24100.0,24096.0,0.85905733]
[1659291848223,0.0031,24100.0,24099.0,1.35970733]
[1659291848450,0.919,24107.0,24105.0,1.0097]
[1659291848674,0.002,24108.0,24106.0,0.35]
[1659291848902,0.002,24108.0,24107.0,1.45905633]
[1659291849194,0.002,24108.0,24107.0,1.14935633]
[1659291849436,0.22,24108.0,24107.0,0.84935733]
[1659291849664,0.22,24108.0,24107.0,0.70651595]
[1659291849913,0.22,24108.0,24107.0,0.40651695]
[1659291849914,0.002,24108.0,24107.0,0.40651695]
[1659291850140,0.2603,24108.0,24107.0,0.70651595]
[1659291850362,0.27294348,24108.0,24107.0,0.70651595]
[1659291850583,0.27294348,24108.0,24107.0,0.40651695]
[1659291850821,0.2603,24108.0,24107.0,0.40651695]
[1659291851259,0.002,24108.0,24107.0,0.44119011]
[1659291851474,0.002,24108.0,24107.0,0.40651695]
[1659291851700,0.002,24108.0,24107.0,0.40577657]
[1659291852597,0.052,24108.0,24107.0,0.40464865]
[1659291852816,0.352,24108.0,24107.0,0.40464865]
[1659291853567,0.352,24108.0,24107.0,0.43932181]
[1659291853796,0.352,24108.0,24107.0,0.43858143]
[1659291854250,0.352,24108.0,24107.0,0.40390827]
[1659291854504,0.3923,24108.0,24107.0,0.40390827]
[1659291854946,0.3923,24108.0,24107.0,0.43858143]
[1659291855170,0.352,24108.0,24107.0,0.40390827]
[1659291855869,0.352,24108.0,24107.0,0.40316789]
[1659291856535,0.352,24108.0,24107.0,0.43784105]
[1659291857055,0.352,24108.0,24107.0,0.40316789]
[1659291857728,0.002,24108.0,24107.0,0.36212751]
[1659291857947,0.002,24108.0,24107.0,0.66212651]
[1659291858189,0.22,24108.0,24107.0,0.65242651]
[1659291858403,0.002,24108.0,24107.0,0.35242751]
[1659291858877,0.22,24108.0,24107.0,0.35242751]
[1659291859344,0.002,24108.0,24107.0,0.35242751]
[1659291859584,0.052,24108.0,24107.0,0.38710067]
[1659291860018,0.052,24108.0,24107.0,0.38636029]
[1659291860248,0.052,24108.0,24107.0,0.35168713]
[1659291861207,0.052,24108.0,24107.0,0.38636029]
[1659291861889,0.052,24108.0,24107.0,0.38561991]
[1659291862356,0.002,24108.0,24107.0,0.68561891]
[1659291862576,0.002,24108.0,24107.0,0.38561991]
[1659291863480,0.002,24108.0,24107.0,0.82771991]
[1659291863704,0.002,24108.0,24107.0,1.12944434]
[1659291863919,0.002,24108.0,24107.0,1.13840396]
[1659291864140,0.002,24108.0,24107.0,0.69630396]
[1659291864360,0.002,24108.0,24107.0,0.6519308]
[1659291866543,0.002,24108.0,24107.0,0.3519318]
[1659291866769,0.002,24108.0,24107.0,0.6519308]
[1659291867667,0.002,24108.0,24107.0,0.6019308]
[1659291868652,0.002,24108.0,24107.0,0.60119042]
[1659291869330,0.002,24108.0,24107.0,0.30119142]
[1659291869794,0.00592077,24108.0,24107.0,0.30119142]
[1659291870439,0.00592077,24108.0,24107.0,0.30045104]
[1659291870905,0.00592077,24108.0,24107.0,0.30192087]
[1659291871130,0.00592077,24108.0,24107.0,0.60045004]
[1659291872941,0.01629277,24108.0,24107.0,0.60045004]
[1659291873153,0.00592077,24108.0,24107.0,0.60045004]
[1659291873367,0.00592077,24108.0,24107.0,0.6351232]
[1659291874754,0.00592077,24108.0,24107.0,0.63438282]
[1659291874997,0.00592077,24108.0,24107.0,0.6344563]
[1659291875215,0.00592077,24108.0,24107.0,0.59970966]
[1659291876128,0.00592077,24108.0,24107.0,0.59978314]
[1659291876829,0.00592077,24108.0,24107.0,0.59970966]
[1659291877062,0.09622077,24108.0,24107.0,0.59970966]
[1659291877273,0.44622077,24108.0,24107.0,0.29971066]
[1659291878658,0.40592077,24108.0,24107.0,0.29971066]
[1659291878868,0.40592077,24108.0,24107.0,0.29897028]
[1659291880269,0.41629377,24108.0,24107.0,0.49897028]
[1659291880493,0.44716377,24108.0,24107.0,0.49897028]
[1659291880712,0.87226277,24108.0,24107.0,0.49897028]
[1659291880925,0.92520625,24108.0,24107.0,0.4982299]
[1659291881145,0.97520625,24108.0,24107.0,0.20172543]
[1659291881810,1.37520625,24108.0,24107.0,0.20172543]
[1659291882024,0.0403,24100.0,24094.0,0.00116466]
[1659291882246,0.0403,24100.0,24098.0,0.40725733]
[1659291882247,0.1403,24100.0,24098.0,0.40725733]
[1659291882460,0.3583,24100.0,24098.0,0.40725733]
[1659291882681,0.485,24099.0,24098.0,0.40651695]
[1659291883142,0.5253,24099.0,24098.0,0.40651695]
[1659291883357,0.485,24099.0,24098.0,0.40651695]
[1659291883574,0.6504,24099.0,24098.0,0.40651695]
[1659291883854,0.930856,24099.0,24098.0,0.40651695]
[1659291884083,0.703,24099.0,24098.0,0.40651695]
[1659291884313,0.753,24099.0,24098.0,0.40651695]
[1659291884765,1.103677,24099.0,24098.0,0.40577657]
[1659291885201,0.81325955,24099.0,24092.0,0.47325733]
[1659291885435,0.05,24098.0,24093.0,0.70725633]
[1659291885656,0.13826855,24099.0,24096.0,0.40725733]
[1659291885881,0.00326855,24099.0,24097.0,0.03474667]
[1659291886100,0.00326855,24099.0,24093.0,0.7518]
[1659291886101,0.00326855,24099.0,24098.0,0.40725733]
[1659291886805,0.00326855,24099.0,24098.0,0.40651695]
[1659291887243,0.218,24103.0,24098.0,0.40651695]
[1659291887732,0.218,24101.0,24098.0,0.40651695]
[1659291887933,0.00326538,24099.0,24098.0,0.40651695]
[1659291888168,0.00326538,24099.0,24098.0,0.70651595]
[1659291888381,0.00326538,24099.0,24098.0,0.44119011]
[1659291888603,0.00326538,24099.0,24098.0,0.70651595]
[1659291888843,0.0903,24095.0,24093.0,0.40725733]
[1659291889077,0.5583,24091.0,24090.0,0.40725733]